[Event "31st MPL National U18 Chess-ch 2022"]
[Site "Pollachi"]
[Date "2022.04.21"]
[Round "8.3"]
[White "Vignesh B"]
[Black "Bharath Subramaniyam H"]
[Result "1-0"]
[ECO "A04"]
[WhiteElo "2249"]
[BlackElo "2508"]
[Annotator "TA"]
[PlyCount "153"]
[EventDate "2022.04.18"]
[EventCountry "IND"]
[SourceTitle "playchess.com"]
[Source "ChessBase"]
[SourceQuality "1"]
[TimeControl "5400+30"]

{[%evp 9,153,-8,44,-12,-12,-19,-13,-19,-25,-13,14,16,12,-4,7,0,84,34,39,43,18,8,12,11,19,18,23,19,33,0,0,0,0,0,0,0,0,0,0,0,18,0,85,81,85,57,72,29,106,102,185,196,180,185,267,263,322,246,261,264,313,381,368,356,366,366,356,350,429,426,607,602,744,796,788,787,695,583,568,553,1121,1106,1063,985,1299,1068,2115,2025,12836,12837,2698,639,632,632,609,607,598,583,553,515,652,638,1077,1016,1154,1148,1130,1104,1088,1073,1125,1064,1079,1059,1412,1415,1224,1157,2027,1823,1385,1182,1720,1470,29977,29978,29980,29978,29982,29983,29983,29984,29984,29985,29985,29986,29986,29987,29987,12845,29994,29995,29995,29996,29996,826]} 1. Nf3 {[%emt 0:00:34]} d6 {[%emt 0:03:00]} 2. b3 {[%emt 0:02:04]} e5 {[%emt 0:01:33]} 3. e3 {[%emt 0:01:41]} g6 {[%emt 0:05:39]} 4. d4 {[%emt 0:00:59]} Bg7 {[%emt 0:04:43]} 5. Bb2 {[%emt 0:01:09]} Nd7 {[%emt 0:04:33] [#]} ({Black should play} 5... e4 $11 6. Nfd2 f5) 6. h4 $146 {[%emt 0:06:14] A04: Unusual lines after 1 Nf3 and King's Indian Attack.} (6. dxe5 $14 Ne7 7. Bc3 dxe5 8. Bc4) ({Predecessor:} 6. dxe5 dxe5 7. h4 h5 8. Nc3 Ne7 9. Qd2 O-O 10. O-O-O a5 11. a4 c6 12. Ng5 {1-0 (48) Carlsen,M (2832)-Guseinov,G (2645) Chess.com INT 2017}) 6... e4 $11 {[%emt 0:14:46]} 7. Ng5 {[%emt 0:11:23][%cal Bf3g5,Bg5h3,Bh3f4][%mdl 32]} d5 {[%emt 0:13:03] Inhibits Bc4.} 8. c4 {[%emt 0:01:50] The position is equal.} h6 {[%emt 0:00:53]} 9. Nh3 {[%emt 0:00:06]} dxc4 {[%emt 0:05:07]} 10. Nf4 {[%emt 0:00:50]} Ne7 {[%emt 0:02:01]} 11. Bxc4 {[%emt 0:02:42]} Nf6 {[%emt 0:05:15]} 12. Nc3 {[%emt 0:01:35]} Nf5 {[%emt 0:04:59]} (12... c6 $11 {keeps the balance.}) 13. Qc2 {[%emt 0:19:10] &Bianco is more active.} (13. h5 $16) 13... Nd6 $14 {[%emt 0:00:26]} 14. Ba3 {[%emt 0:02:51]} Bf5 {[%emt 0:01:04]} 15. Ncd5 {[%emt 0:02:54]} O-O {[%emt 0:07:44]} 16. Nxf6+ {[%emt 0:07:46]} Qxf6 {[%emt 0:00:18]} 17. Be2 {[%emt 0:01:31]} Rfc8 {[%emt 0:07:07]} 18. g4 {[%emt 0:01:46]} c5 {[%emt 0:06:47][%cal Oc5d4]} 19. Bb2 {[%emt 0:05:53]} (19. gxf5 $2 cxd4 20. Qd1 d3 21. fxg6 dxe2 22. Kxe2 Qxa1 23. Qxa1 Bxa1 24. Rxa1 Rc2+ 25. Kf1 Nf5 $19) ({Reject} 19. Bxc5 b6 $1 20. b4 (20. gxf5 bxc5 21. fxg6 cxd4 $17) (20. Nd5 Qd8 $17) 20... Bd7 $17) 19... Bd7 {[%emt 0:06:40]} 20. Nd5 {[%emt 0:04:45]} Qe6 {[%emt 0:01:25]} 21. Nf4 {[%emt 0:02:06]} Qf6 {[%emt 0:00:57][%cal Rc5d4]} 22. Nd5 {[%emt 0:03:19]} Qe6 {[%emt 0:01:54]} 23. Nf4 {[%emt 0:00:54]} Qf6 {[%emt 0:00:59]} 24. Nd5 {[%emt 0:02:16]} Qe6 {[%emt 0:00:06]} 25. Nf4 {[%emt 0:00:14]} (25. dxc5 {seems wilder.} Qxd5 26. Bxg7 Kxg7 27. Qb2+) 25... Qe7 {[%emt 0:00:54]} (25... Qf6 $1 $11) 26. dxc5 $16 {[%emt 0:04:34]} Bxb2 {[%emt 0:00:05]} 27. Qxb2 {[%emt 0:00:02]} Rxc5 {[%emt 0:00:02]} 28. Rd1 {[%emt 0:00:13]} Bc6 {[%emt 0:00:26] [#]} (28... Be6 $11) 29. a4 $1 {[%emt 0:03:36] White stays focused until the end.} a5 {[%emt 0:01:49]} (29... b6 $16) 30. Qd4 $1 $18 {[%emt 0:00:57][%csl LRc5,LRd6]} Ne8 {[%emt 0:00:14]} 31. Bc4 $40 {[%emt 0:00:11][%mdl 128] Strongly threatening Nxg6. White attacks with force.} Rxc4 {[%emt 0:00:59]} (31... Qe5 $142) 32. Qxc4 {[%emt 0:00:56]} Kh7 {[%emt 0:00:07]} 33. h5 {[%emt 0:03:11][%cal Og4g5] Black must now prevent g5!} g5 {[%emt 0:00:07]} 34. Nd5 {[%emt 0:00:01]} Bxd5 {[%emt 0:00:50]} 35. Qxd5 {[%emt 0:00:02]} Nf6 {[%emt 0:00:22]} 36. Qf5+ {[%emt 0:02:21]} Kg7 {[%emt 0:00:09]} 37. O-O {[%emt 0:00:05][%cal Bh1f1,Bf1d1,Bd1d5][%mdl 32]} Ra6 {[%emt 0:00:05]} 38. Rc1 {[%emt 0:02:39]} Ne8 {[%emt 0:00:46]} 39. Rfd1 {[%emt 0:01:09]} Re6 {[%emt 0:00:22]} (39... Rf6 $142) 40. Qxa5 {[%emt 0:00:30]} Re5 {[%emt 0:00:19]} 41. Rd5 {[%emt 0:00:46]} Re6 {[%emt 0:00:08]} 42. Rc8 {[%emt 0:00:16]} Rf6 {[%emt 0:00:46]} 43. Qc3 {[%emt 0:00:56] aiming for Rf5.} Nd6 {[%emt 0:00:13] Against Rf5} 44. Rcc5 {[%emt 0:01:19]} Kh7 {[%emt 0:00:09]} 45. Qe5 {[%emt 0:01:36]} Re6 {[%emt 0:00:07]} 46. Qd4 {[%emt 0:00:21]} Rf6 {[%emt 0:00:20]} 47. Re5 {[%emt 0:00:21]} Qd7 {[%emt 0:00:28]} 48. Rxe4 {[%emt 0:00:16]} Kg8 {[%emt 0:00:50]} 49. Rd5 {[%emt 0:00:49]} Kg7 {[%emt 0:00:25]} 50. Rxd6 {[%emt 0:00:46]} Qxd6 {[%emt 0:00:06]} 51. Qxd6 {[%emt 0:00:03]} Rxd6 {[%emt 0:00:06][%mdl 4096] Endgame KR-KR} 52. Rb4 {[%emt 0:00:02] Against Rb6} b6 {[%emt 0:00:09]} 53. Kg2 {[%emt 0:00:18]} Kf8 {[%emt 0:00:07]} 54. Kf3 {[%emt 0:00:25]} Ke7 {[%emt 0:00:06]} 55. Ke4 {[%emt 0:00:28]} Ke6 {[%emt 0:00:16]} 56. Rd4 {[%emt 0:00:11] Threatens to win with Rxd6+.} Rc6 {[%emt 0:00:01]} 57. Rc4 {[%emt 0:00:01]} Rd6 {[%emt 0:00:11]} 58. b4 {[%emt 0:00:18]} Ke7 {[%emt 0:00:10]} 59. Rc7+ {[%emt 0:01:01]} Kf8 {[%emt 0:00:06]} 60. Rb7 {[%emt 0:00:34]} Kg7 {[%emt 0:00:10]} 61. Ke5 {[%emt 0:01:06]} Rf6 {[%emt 0:00:08]} 62. f4 {[%emt 0:00:56][%cal Bf2f4,Bf4f5][%mdl 32] f5 is the strong threat.} Re6+ {[%emt 0:00:05]} 63. Kd4 {[%emt 0:00:02]} Kf6 {[%emt 0:00:14]} 64. f5 {[%emt 0:00:25]} Rd6+ {[%emt 0:00:06]} 65. Kc4 {[%emt 0:00:02]} Kg7 {[%emt 0:00:09]} 66. e4 {[%emt 0:00:05] Hoping for Kb5.} Rd2 {[%emt 0:00:25]} 67. Rxb6 {[%emt 0:00:41]} Rg2 {[%emt 0:00:04]} 68. a5 {[%emt 0:00:25]} Rxg4 {[%emt 0:00:02]} 69. a6 {[%emt 0:00:00]} Rxe4+ {[%emt 0:00:01]} 70. Kd5 {[%emt 0:00:55]} Re1 {[%emt 0:00:20]} 71. f6+ {[%emt 0:00:19]} Kh7 {[%emt 0:00:02]} 72. a7 {[%emt 0:00:24]} Ra1 {[%emt 0:00:08]} 73. Rb7 {[%emt 0:00:01]} g4 {[%emt 0:00:07]} 74. Rxf7+ {[%emt 0:00:01]} (74. b5 $142 Rd1+ 75. Kc6 Rc1+ 76. Kd6 Ra1 77. b6 Rd1+ 78. Ke7 Ra1 79. Kxf7) 74... Kh8 {[%emt 0:00:07]} 75. Rf8+ {[%emt 0:00:28] White mates.} Kh7 {[%emt 0:00:04]} 76. a8=Q {[%emt 0:00:07]} Rxa8 {[%emt 0:00:04]} 77. Rxa8 {[%emt 0:00:03] Weighted Error Value: White=0.12 (very precise) /Black=0.29 (precise)} 1-0

[Event "31st MPL National U18 Chess-ch 2022"]
[Site "Pollachi"]
[Date "2022.04.21"]
[Round "8.4"]
[White "Rakshith Srinivasan"]
[Black "Harshad S"]
[Result "1/2-1/2"]
[ECO "B87"]
[WhiteElo "1856"]
[BlackElo "2328"]
[Annotator "TA"]
[PlyCount "61"]
[EventDate "2022.04.18"]
[EventCountry "IND"]
[SourceTitle "playchess.com"]
[Source "ChessBase"]
[SourceQuality "1"]
[TimeControl "5400+30"]

{[%evp 15,61,7,2,0,2,-8,-16,-22,0,-8,26,0,0,-2,18,13,61,39,50,14,2,-11,-10,-20,-11,-30,-48,-55,0,-28,0,0,27,20,20,14,24,11,87,0,23,0,65,0,23,0,75,0]} 1. e4 {[%emt 0:00:02]} c5 {[%emt 0:00:12]} 2. Nf3 {[%emt 0:00:03]} d6 {[%emt 0:00:11]} 3. d4 {[%emt 0:00:04]} cxd4 {[%emt 0:00:08]} 4. Nxd4 {[%emt 0:00:03]} Nf6 {[%emt 0:00:10]} 5. Nc3 {[%emt 0:00:04]} a6 {[%emt 0:00:09]} 6. Bc4 {[%emt 0:00:06]} e6 {[%emt 0:00:06]} 7. Bb3 {[%emt 0:00:04]} b5 {[%emt 0:00:10] 7...Nbd7 might become the main line.} 8. Qf3 {[%emt 1:34:04]} Qb6 {[%emt 0:04:29]} 9. Be3 {[%emt 0:00:00][%cal Od4e6] Black must now prevent Nxe6! B87: Sicilian Scheveningen/Najdorf: 6 Bc4, with early ...b5.} Qb7 {[%emt 0:00:44]} 10. Bg5 {[%emt 0:00:00]} Be7 {[%emt 0:11:13]} 11. O-O {[%emt 0:00:00] The position is equal.} Nbd7 {[%emt 0:07:50]} (11... h6 $5 {[%cal Rh6g5]} 12. Bd2 b4 $11) 12. Rfe1 {[%emt 0:00:00]} Nc5 {[%emt 0:07:11]} 13. a3 {[%emt 0:00:00]} (13. Rad1 $5 {[%cal Rd4f5]} b4 14. Nb1 $11) 13... O-O {[%emt 0:10:00]} 14. Ba2 {[%emt 0:00:00] [#]} Kh8 $146 {[%emt 0:04:22]} ({Predecessor:} 14... Na4 15. Nxa4 bxa4 16. Rab1 h6 17. Bd2 Qb6 18. Be3 Qc7 19. Qe2 e5 20. Nf3 Bb7 {½-½ (40) Syrkiewicz,M (1988)-Gradalski,O (2051) Sypniewo 2022}) 15. Rad1 {[%emt 0:00:00]} Na4 {[%emt 0:15:40]} (15... Ncd7 $11) 16. Nxa4 $14 {[%emt 0:00:00]} bxa4 {[%emt 0:00:02]} 17. b4 {[%emt 0:00:00]} axb3 $1 {[%emt 0:03:21]} 18. Bxb3 {[%emt 0:00:00]} Qc7 {[%emt 0:06:04]} 19. Qd3 {[%emt 0:00:00]} (19. Rb1 {is interesting.} Bb7 20. Bxe6 fxe6 21. Nxe6 Qd7 22. Nxf8 Rxf8 23. Qe2) 19... Bb7 {[%emt 0:02:08]} 20. Nf3 {[%emt 0:00:00]} Rfd8 {[%emt 0:00:51]} 21. Bf4 {[%emt 0:00:00]} a5 {[%emt 0:04:11]} ({Black should play} 21... Kg8 $15) 22. a4 {[%emt 0:00:00]} Kg8 {[%emt 0:02:03]} (22... Ba6 $5 {[%cal Ra6d3]} 23. Qd2 Qb7 $15) 23. Nd4 {[%emt 0:00:00]} Ba6 {[%emt 0:02:41]} 24. Nb5 {[%emt 0:00:00]} Qc6 {[%emt 0:02:32]} 25. c4 {[%emt 0:08:30]} Nd7 {[%emt 0:03:43]} 26. Qg3 {[%emt 0:00:00][%cal Rf4d6]} (26. Nxd6 $2 Nc5 27. Qg3 Nxb3 $19) 26... Nf6 {[%emt 0:03:16]} (26... Nc5 $11 {remains equal.}) 27. Qd3 {[%emt 0:00:00] &Bianco is much more active.} (27. Bxd6 Nxe4 $1 28. Qf3 (28. Rxe4 $2 Qxe4 29. Rc1 Bh4 $19) 28... Bxd6 $15) (27. Nxd6 $2 Nh5 28. Qe3 Nxf4 29. Nxf7 Kxf7 $19) (27. Bh6 $1 $16 {[%csl Gh6][%cal Rg3g7]} Nh5 28. Qg4) 27... Nd7 $11 {[%emt 0:05:19]} 28. Qg3 {[%emt 0:00:00][%cal Rf4d6]} (28. Nxd6 $2 Nc5 29. Qg3 Nxb3 $19) 28... Nf6 {[%emt 0:02:19]} 29. Qd3 {[%emt 0:00:00]} (29. Bxd6 Nxe4 $1 30. Qf3 (30. Rxe4 $2 Qxe4 31. h3 Bxd6 $19) 30... Bxd6 $15) (29. Nxd6 $2 Nh5 30. Qe3 Nxf4 $19) (29. Bh6 $5 {[%cal Rg3g7]} Ne8 30. f3 $14) 29... Nd7 {[%emt 0:00:17]} 30. Qg3 {[%emt 0:00:00]} ({Avoid the trap} 30. Nxd6 $2 Nc5 31. Qg3 Nxb3 $19) (30. Qf1 $11) 30... Nf6 $16 {[%emt 0:00:12]} 31. Qd3 {[%emt 0:00:00] Weighted Error Value: White=0.21 (precise) /Black=0.15 (very precise)} ({But not} 31. Bxd6 {[#]} Nxe4 $1 32. Qf3 (32. Rxe4 $2 Qxe4 33. h3 Bxd6 $19) 32... Bxd6 $15) (31. Nxd6 $2 Nh5 32. Qe3 Nxf4 33. Nxf7 Rxd1 34. Rxd1 Qc7 $19) (31. Bh6 $16 {[%csl Gh6][%cal Rg3g7]} Nh5 32. Qg4) 1/2-1/2

[Event "31st MPL National U18 Chess-ch 2022"]
[Site "Pollachi"]
[Date "2022.04.21"]
[Round "8.5"]
[White "Dinesh Rajan M"]
[Black "John Veny Akkarakaran"]
[Result "0-1"]
[ECO "C11"]
[WhiteElo "1912"]
[BlackElo "1687"]
[Annotator "TA"]
[PlyCount "128"]
[EventDate "2022.04.18"]
[EventCountry "IND"]
[SourceTitle "playchess.com"]
[Source "ChessBase"]
[SourceQuality "1"]
[TimeControl "5400+30"]

{[%evp 23,128,9,20,-22,21,29,41,33,50,14,19,21,16,24,60,-80,0,0,27,13,20,17,71,85,85,103,147,143,179,131,187,187,172,0,0,0,0,0,0,-77,-70,-101,0,-87,0,0,0,-52,-26,-55,-29,-61,-68,-74,-76,-99,-22,-143,0,0,0,0,0,0,0,0,0,0,0,0,0,0,0,0,0,0,0,0,0,0,0,0,0,0,0,0,0,0,0,0,0,0,0,0,0,0,0,0,0,-27991,-27991,-27992,-27992,-27993,-27993,-27996,-27998]} 1. e4 {[%emt 0:00:05]} e6 {[%emt 0:00:07]} 2. d4 {[%emt 0:00:16]} d5 {[%emt 0:00:08]} 3. Nc3 {[%emt 0:00:14]} Nf6 {[%emt 0:00:05]} 4. e5 {[%emt 0:00:12]} Nfd7 {[%emt 0:00:05]} 5. f4 {[%emt 0:00:08]} c5 {[%emt 0:00:04]} 6. Nf3 {[%emt 0:00:03]} Nc6 {[%emt 0:00:05]} 7. Be3 {[%emt 0:00:06]} cxd4 {[%emt 0:00:18]} 8. Nxd4 {[%emt 0:00:06]} Bc5 {[%emt 0:00:07]} 9. Qd2 {[%emt 0:01:36]} O-O {[%emt 0:00:10]} 10. O-O-O {[%emt 0:01:33]} Bxd4 {[%emt 0:00:08]} 11. Bxd4 {[%emt 0:00:05]} a6 {[%emt 0:00:08] 11...a6 scores better than 11...Qa5.} 12. h4 {[%emt 0:15:20]} b5 {[%emt 0:00:16]} 13. g4 {[%emt 0:04:04] C11: French: Classical System: 4 e5 and 4 Bg5 dxe4.} Qa5 {[%emt 0:02:09]} 14. Kb1 $1 {[%emt 0:04:38]} b4 {[%emt 0:02:31]} 15. Ne2 {[%emt 0:00:15] [#] White is slightly better.} Qc7 $146 {[%emt 0:00:40]} ({Predecessor:} 15... Nxd4 16. Nxd4 Bb7 17. Qe3 Qc7 18. Bd3 a5 19. Nb5 Qc5 20. Qxc5 Nxc5 21. Nd6 Bc6 {0-1 (33) Cagara,P (2054)-Leve,N (2128) Chess.com INT 2020}) 16. g5 {[%emt 0:10:51]} a5 $1 {[%emt 0:08:51]} 17. h5 {[%emt 0:17:21][%cal Og5g6]} a4 {[%emt 0:07:42]} 18. g6 $1 {[%emt 0:07:03]} fxg6 {[%emt 0:22:51]} 19. Rg1 {[%emt 0:08:22]} (19. hxg6 $14 hxg6 20. Bh3) 19... b3 {[%emt 0:05:21]} ({Better is} 19... a3 $17 {Strongly threatening ...axb2.} 20. hxg6 axb2 21. gxh7+ Kh8 22. Bxb2 Nc5) 20. hxg6 $11 {[%emt 0:02:35]} h6 {[%emt 0:05:35][%cal Oc6b4]} 21. cxb3 {[%emt 0:05:48]} axb3 {[%emt 0:00:30]} 22. a3 {[%emt 0:02:26]} Nxd4 {[%emt 0:10:40]} (22... Nb6 $11) 23. Nxd4 $16 {[%emt 0:00:26]} Nc5 {[%emt 0:01:30]} 24. Rc1 {[%emt 0:04:33]} Ne4 {[%emt 0:08:27] Inhibits Qc3.} 25. Qe3 {[%emt 0:00:24]} (25. Rxc7 $6 Nxd2+ 26. Kc1 Rxf4 $1 27. Kxd2 Rxd4+ 28. Ke3 (28. Kc3 $2 Rd1 $19) 28... Re4+ 29. Kd2 Rd4+ 30. Ke3 (30. Kc3 $2 Rd1 $19) 30... Re4+ 31. Kd2 Rd4+ $11) 25... Qb6 {[%emt 0:00:36]} 26. Rc6 {[%emt 0:00:24]} (26. Bb5 $18) 26... Qa5 {[%emt 0:02:11]} (26... Qa7 $16) 27. Nxb3 $18 {[%emt 0:00:33]} Qa4 {[%emt 0:00:31]} 28. Rb6 {[%emt 0:00:28]} (28. Rc7 $18) 28... Qa7 $1 $11 {[%emt 0:03:38]} 29. Qd4 $1 {[%emt 0:04:34]} Rxf4 {[%emt 0:01:08][%cal Oe4c3]} 30. Ka1 {[%emt 0:00:55]} Bd7 {[%emt 0:04:34]} 31. Rb4 {[%emt 0:01:50]} (31. Bb5 $11 {remains equal.} Bxb5 32. Rxb5) 31... Qxd4 $17 {[%emt 0:04:29]} 32. Rxd4 {[%emt 0:00:06]} Ra4 {[%emt 0:01:42]} 33. Be2 {[%emt 0:01:32] [#]} Rxd4 {[%emt 0:01:29]} ({Black should play} 33... Rf5 $1 $17 34. Rxa4 Bxa4) 34. Nxd4 $11 {[%emt 0:00:02]} Nd2 {[%emt 0:00:01]} 35. Bb5 {[%emt 0:02:31]} Bxb5 $15 {[%emt 0:01:13]} 36. Nxb5 {[%emt 0:00:02][%mdl 4096] Endgame KRN-KRN} Nf3 {[%emt 0:03:16]} 37. Rc1 {[%emt 0:04:19]} Nxe5 {[%emt 0:00:55]} 38. Nd4 $1 {[%emt 0:01:03]} Nxg6 {[%emt 0:00:46]} 39. Nxe6 {[%emt 0:00:06]} Rg4 {[%emt 0:01:17]} (39... Re4 $17 40. Nc7 Rc4) 40. Rc7 {[%emt 0:01:05]} (40. b3 $11) 40... Nf4 {[%emt 0:00:56]} (40... Ne5 $17 {White must now prevent ...h5.} 41. Re7 Nc4) 41. Nxf4 $11 {[%emt 0:01:07]} Rxf4 {[%emt 0:00:01] KR-KR} 42. b4 {[%emt 0:00:06]} d4 {[%emt 0:04:19]} 43. b5 {[%emt 0:01:09]} d3 {[%emt 0:00:00]} 44. Kb2 {[%emt 0:00:08]} Rf2+ {[%emt 0:00:00]} 45. Kc1 {[%emt 0:00:05]} Rf1+ {[%emt 0:00:11]} 46. Kd2 {[%emt 0:00:04]} Rb1 $1 {[%emt 0:00:02]} 47. a4 {[%emt 0:01:38]} Rb4 $1 {[%emt 0:00:17]} 48. Ra7 {[%emt 0:00:45]} Rb3 {[%emt 0:00:05]} 49. Rb7 $1 {[%emt 0:00:39]} Ra3 $1 {[%emt 0:02:55]} 50. Ra7 {[%emt 0:00:46]} Rb3 {[%emt 0:00:00]} 51. Ra6 {[%emt 0:00:38] And now Rd6 would win.} h5 {[%emt 0:00:00] Hoping for ...h4.} 52. b6 {[%emt 0:00:47]} h4 {[%emt 0:00:00]} 53. Ra8+ {[%emt 0:00:03]} Kh7 {[%emt 0:02:00]} (53... Kf7 54. a5 $16) 54. a5 {[%emt 0:00:53]} h3 {[%emt 0:00:00]} 55. Rc8 {[%emt 0:00:02]} g5 {[%emt 0:00:00] aiming for ...h2.} (55... h2 $5 56. Rc1 Rb5 $11) 56. Rc1 {[%emt 0:00:43]} g4 {[%emt 0:00:00]} 57. Ra1 {[%emt 0:00:29] Threatens to win with a6.} h2 {[%emt 0:00:00]} (57... g3 $5 58. a6 Rb2+ 59. Kxd3 Rxb6 $11) 58. a6 {[%emt 0:01:28]} Ra3 {[%emt 0:00:38]} 59. Rh1 {[%emt 0:00:00]} (59. Rxa3 h1=Q 60. b7 Qb1 61. Rxd3 (61. a7 $2 Qc2+ 62. Ke3 Qc5+ 63. Kd2 Qc2+ 64. Ke3 Qc1+ 65. Ke4 d2 $19) 61... Qb2+ 62. Kd1 (62. Ke3 Qe5+ 63. Kf2 Kg6 $15) 62... Qb6) 59... Rxa6 {[%emt 0:02:22]} 60. Rxh2+ {[%emt 0:00:00]} Kg6 {[%emt 0:00:00]} 61. Kxd3 $2 {[%emt 0:00:00][%mdl 8192]} (61. Rh4 $11) 61... Rxb6 {[%emt 0:00:00] Black mates.} 62. Ke3 {[%emt 0:00:37] [#]} Kg5 $1 {[%emt 0:01:30]} 63. Kf2 {[%emt 0:01:11]} Kf4 {[%emt 0:00:00]} 64. Rg2 {[%emt 0:00:36]} Rb1 {[%emt 0:00:00] Black used his chance.  Weighted Error Value: White=0.34/Black=0.16 (very precise)} 0-1

[Event "31st MPL National U18 Chess-ch 2022"]
[Site "Pollachi"]
[Date "2022.04.21"]
[Round "8.6"]
[White "Arul Anandh S P K"]
[Black "Avinash Ramesh"]
[Result "0-1"]
[ECO "B25"]
[WhiteElo "1759"]
[BlackElo "2402"]
[Annotator "TA"]
[PlyCount "62"]
[EventDate "2022.04.18"]
[EventCountry "IND"]
[SourceTitle "playchess.com"]
[Source "ChessBase"]
[SourceQuality "1"]
[TimeControl "5400+30"]

{[%evp 21,62,-18,-6,-12,-13,-17,-15,-27,-20,-19,-26,-67,-63,-96,-98,-106,-75,-91,-68,-68,-74,-186,-190,-178,-75,-167,-168,-181,-181,-181,-181,-181,-181,-622,-372,-795,-791,-29981,-29982,-29982,-29983,-29974,-5700]} 1. e4 {[%emt 0:00:04]} c5 {[%emt 0:00:23]} 2. Nc3 {[%emt 0:00:14]} Nc6 {[%emt 0:00:04]} 3. f4 {[%emt 0:00:52]} g6 {[%emt 0:00:05]} 4. Nf3 {[%emt 0:01:01]} Bg7 {[%emt 0:00:06]} 5. g3 {[%emt 0:03:56]} e6 {[%emt 0:01:04]} 6. Bg2 {[%emt 0:00:24]} Nge7 {[%emt 0:00:06]} 7. O-O {[%emt 0:00:13]} O-O {[%emt 0:00:06]} 8. d3 {[%emt 0:00:48]} d6 {[%emt 0:02:40]} 9. Be3 {[%emt 0:01:37]} Rb8 {[%emt 0:00:21]} 10. Qd2 {[%emt 0:07:36]} Nd4 {[%emt 0:00:28]} 11. Rab1 {[%emt 0:02:45]} b5 {[%emt 0:09:17]} 12. Ne2 {[%emt 0:00:39] B25: Closed Sicilian: 3 g3, lines without early Be3.} Nxe2+ {[%emt 0:02:55]} 13. Qxe2 {[%emt 0:00:08]} b4 {[%emt 0:00:09]} 14. Nd2 {[%emt 0:15:34] The position is equal.} Qc7 {[%emt 0:06:42]} 15. Qf2 {[%emt 0:02:17][%cal Oe4e5]} Bb7 {[%emt 0:06:07] [#]} 16. g4 $146 {[%emt 0:07:34]} ({Predecessor:} 16. a3 a5 17. Rfc1 Ba8 18. Rf1 f5 19. Qe1 a4 20. Qd1 Rfe8 21. Re1 bxa3 22. bxa3 {1-0 (50) Esquivel Leon,J (2170)-Guizar,C (1989) ICCF email 2018}) 16... f5 {[%emt 0:01:37]} 17. g5 {[%emt 0:03:11]} e5 {[%emt 0:02:58]} (17... a5 {is interesting.} 18. e5 dxe5 19. Bxb7 exf4 20. Bxf4 Qxb7 21. Nc4 Bd4) 18. Qh4 {[%emt 0:03:03]} d5 {[%emt 1:04:22] ...fxe4 is the strong threat.} 19. fxe5 {[%emt 0:06:38]} fxe4 {[%emt 0:00:00]} (19... Qxe5 20. Bf4 Qe6 21. Bxb8 Rxb8 22. exd5 Bxd5 23. Rbe1 Bd4+ 24. Kh1 Bxg2+ 25. Kxg2 Qc6+ 26. Kh3 $16) 20. dxe4 {[%emt 0:08:08]} Bxe5 {[%emt 0:00:00]} 21. exd5 {[%emt 0:13:21] [#]} (21. Rxf8+ $17 Rxf8 22. Rf1) 21... Nf5 $1 $19 {[%emt 0:00:00]} (21... Bxd5 22. Bxd5+ Nxd5 23. Qc4 Rxf1+ 24. Nxf1 $11) (21... Nxd5 22. Qc4 Rfd8 23. Bxc5 $15) 22. Rxf5 {[%emt 0:07:15]} (22. Qh3 $2 Nxe3 23. Qe6+ Kg7 24. Rxf8 Kxf8 $19) 22... gxf5 {[%emt 0:00:00]} (22... Rxf5 $19 23. c4 bxc3 24. bxc3 Bc8 25. Rxb8 Qxb8) 23. Nc4 {[%emt 0:01:36]} (23. Rd1 $17) 23... f4 {[%emt 0:00:00]} 24. Nxe5 {[%emt 0:00:39]} Qxe5 {[%emt 0:00:00]} (24... fxe3 25. g6 Qg7 26. Qxh7+ Qxh7 27. gxh7+ Kxh7 28. Nd7 $11) 25. Bxc5 {[%emt 0:00:48] Hoping for Re1.} f3 $36 {[%emt 0:00:00][%mdl 2048] Black is in control.} 26. Bf1 {[%emt 0:05:52]} ({Reject} 26. Bxf8 Rxf8 27. g6 (27. Re1 $2 Qxd5 28. g6 hxg6 $19) 27... Qe3+ 28. Qf2 Qxf2+ 29. Kxf2 fxg2+ 30. Kxg2 Bxd5+ 31. Kg3 hxg6 $19) 26... Rf4 {[%emt 0:00:00] Really sharp!} 27. Qf2 {[%emt 0:00:51]} ({Not} 27. Re1 $2 f2+ 28. Qxf2 Rg4+ 29. Bg2 Qxd5 $19) (27. Qg3 f2+ 28. Bxf2) 27... Bxd5 {[%emt 0:00:00]} 28. Kh1 $2 {[%emt 0:01:29]} (28. Bh3 Re4 29. Rd1) 28... Rc8 {[%emt 0:00:00][%cal Oc8c5] Strongly threatening ...Rxc5!} 29. Be3 {[%emt 0:00:33] [#]} Qxe3 $3 {[%emt 0:00:00][%mdl 512] Black mates.} 30. Qxe3 {[%emt 0:00:38]} f2+ {[%emt 0:00:00]} 31. Bg2 {[%emt 0:00:11]} f1=Q+ {[%emt 0:00:00] Weighted Error Value: White=1.07/Black=0.16 (very precise)} 0-1